{"text_format":"1","workbook":"xlsx","n_sheets":3,"sheets":["Relación de gastos","Relación de ingresos","Gastos e ingresos"],"not_rendered":{"charts":0,"images":3,"macros":1,"external_links":0,"defined_names":8,"comments":3,"pivot_tables":0},"unopened":[],"bounds":{"document_bytes":16777216,"sheet_cells":100000,"rows_first":2000,"rows_last":500,"rows_between":2000,"halvings":0,"cell_chars":16384,"cell_head_chars":4096},"cells_cut":0,"cells_raw":0,"read":"whole","date_system":"1900"}

{"sheet":"Relación de gastos","index":0,"n_rows":139,"n_cols":12,"rows_kept":139,"cut":false,"hidden":false,"merged":[[135,0,135,11],[136,0,136,11],[137,0,137,11],[138,0,138,11],[121,0,121,11],[123,0,123,11],[124,0,124,11],[125,0,125,11],[126,0,126,11],[127,0,127,11],[128,0,128,11],[130,0,130,11],[131,0,131,11],[111,0,111,11],[112,0,112,11],[132,0,132,11],[117,0,117,11],[118,0,118,11],[119,0,119,11],[120,0,120,11],[133,0,133,11],[134,0,134,11],[113,0,113,11],[115,0,115,11],[116,0,116,11],[65,11,65,12],[66,11,66,12],[71,11,71,12],[49,0,49,1],[61,0,61,6],[57,11,57,12],[58,11,58,12],[59,11,59,12],[60,11,60,12],[61,11,61,12],[56,0,56,12],[55,11,55,12],[54,11,54,12],[53,11,53,12],[52,11,52,12],[51,11,51,12],[63,0,63,1],[75,11,75,12],[74,11,74,12],[88,0,88,2],[88,3,88,6],[88,11,88,12],[83,11,83,12],[85,11,85,12],[86,11,86,12],[87,0,87,6],[87,11,87,12],[105,0,105,11],[106,0,106,11],[107,0,107,11],[108,0,108,11],[109,0,109,11],[110,0,110,11],[82,0,82,12],[89,0,89,5],[89,11,89,12],[104,0,104,11],[99,0,99,10],[94,0,94,10],[103,0,103,11],[98,0,98,10],[96,0,96,10],[97,0,97,10],[3,9,3,10],[4,9,4,10],[14,11,14,12],[81,11,81,12],[68,11,68,12],[67,11,67,12],[76,0,76,12],[81,0,81,6],[77,11,77,12],[80,11,80,12],[45,11,45,12],[79,11,79,12],[16,11,16,12],[70,0,70,12],[75,0,75,6],[69,0,69,6],[64,0,64,12],[47,0,47,6],[73,11,73,12],[72,11,72,12],[69,11,69,12],[41,11,41,12],[55,0,55,6],[50,0,50,12],[0,0,0,12],[4,0,4,1],[17,0,17,6],[2,2,2,3],[3,2,3,3],[4,2,4,3],[12,11,12,12],[2,0,2,1],[3,0,3,1],[7,1,8,1],[7,0,8,0],[6,0,6,4],[7,11,7,12],[8,11,8,12],[11,0,11,12],[7,3,7,4],[2,4,2,6],[3,4,3,6],[2,9,2,10],[17,11,17,12],[9,0,9,12],[10,0,10,1],[4,4,4,6],[7,2,8,2],[47,11,47,12],[46,11,46,12],[44,11,44,12],[38,11,38,12],[19,11,19,12],[20,11,20,12],[30,0,30,12],[36,0,36,12],[31,11,31,12],[41,0,41,6],[21,11,21,12],[27,11,27,12],[29,0,29,6],[24,0,24,12],[37,11,37,12],[35,11,35,12],[34,11,34,12],[22,11,22,12],[23,0,23,6],[23,11,23,12],[29,11,29,12],[28,11,28,12],[35,0,35,6],[43,11,43,12],[13,11,13,12],[33,11,33,12],[32,11,32,12],[26,11,26,12],[25,11,25,12],[40,11,40,12],[39,11,39,12],[42,0,42,12],[18,0,18,12]]}
["Relación clasificada de todos los gastos realizados para la ejecución de la actividad subvencionada"]
[]
["Persona física/jurídica beneficiaria:     ",null,null,null,"Importe del coste total del proyecto:",null,null,null,null,null,null,"euros"]
["Código de subvención:",null,null,null,"Importe de la subvención otorgada:",null,null,null,null,null,null,"euros"]
["Nombre del proyecto subvencionado:",null,null,null,"Periodo de ejecución del proyecto subvencionado:",null,null,null,null,null,null,"a"]
[]
["Gastos del proyecto/actividad/servicio subvencionado (*)"]
["Núm. De orden (0)","Número de documento: justificantes gasto personal (1), factura o recibo/ticket(2)","Concepto de la factura /\ndocumento probatorio equivalente","Emisor/a de la factura",null,"Fecha de emisión","Importe total de la factura","Porcentaje de iva deducido o el de después de aplicar la Prorrata","Importe después de deducir el IVA correspondiente","Importe imputable (dedicado) al proyecto (3)","Importe imputable a la subvención municipal(4)","Observaciones"]
[null,null,null,"NIF","Nombre","dd/mm/aaaa","euros","%","euros","euros","euros"]
["GASTOS DIRECTOS (Aquellos que se identifican directamente con el proyecto)"]
["Submodalidad AC1"]
["AC1.D1. Honorarios de las personas formadoras externas (precio máximo hora 60€/hora, incluido IRPF en su caso, no incluye IVA si formación no está exenta)"]
[]
[]
[]
[]
[]
[null,null,null,null,null,null,null,null,"Subtotal D.1",{"$f":"SUM(J13:J17)","v":0},{"$f":"SUM(K13:K17)","v":0}]
["AC1.D2.  Lloguer de béns immobles vinculats directament a la realització de la formació"]
[]
[]
[]
[]
[null,null,null,null,null,null,null,null,"Subtotal D.2",{"$f":"SUM(J20:J23)","v":0},{"$f":"SUM(K20:K23)","v":0}]
["AC1.D3. Adquisición de materiales y bienes consumibles necesarios para la realización de la formación"]
[]
[]
[]
[]
[null,null,null,null,null,null,null,null,"Subtotal D.3",{"$f":"SUM(J26:J29)","v":0},{"$f":"SUM(K26:K29)","v":0}]
["AC1.D4. Transporte – mensajería directamente vinculados con la realización de la formación"]
[]
[]
[]
[]
[null,null,null,null,null,null,null,null,"Subtotal D.4",{"$f":"SUM(J32:J35)","v":0},{"$f":"SUM(K32:K35)","v":0}]
["AC1.D5. Seguros"]
[]
[]
[]
[]
[null,null,null,null,null,null,null,null,"Subtotal D.5",{"$f":"SUM(J38:J41)","v":0},{"$f":"SUM(K38:K41)","v":0}]
["AC1.D6. Viajes y desplazamientos imputables a las actividades del proyecto (Max 10% subvención)"]
[]
[]
[]
[]
[null,null,null,null,null,null,null,null,"Subtotal D.6",{"$f":"SUM(J44:J47)","v":0},{"$f":"SUM(K44:K47)","v":0},{"$f":"IF(K48<=J4*0.1,\"\",\"Error: AC1.D6 no pot superar el 10% de la subvenció\")","v":""}]
[]
["Submodalidad AC2"]
["AC2.D1. Gastos de matriculación en acciones formativas externas (mínimo de 150 horas y/o coste mínimo de 600€ para cada participante)"]
[]
[]
[]
[]
[null,null,null,null,null,null,null,null,"Subtotal D.7",{"$f":"SUM(J52:J55)","v":0},{"$f":"SUM(K52:K55)","v":0}]
["AC2.D2. Coste salarial personas trabajadoras que participen en acciones formativas de las administraciones públicas, universidades y ateneos cooperativos y equivalentes a las horas efectivamente dedicadas a esta formación (máximo 30% subvención)"]
[]
[]
[]
[]
[null,null,null,null,null,null,null,null,"Subtotal D.8",{"$f":"SUM(J58:J61)","v":0},{"$f":"SUM(K58:K61)","v":0},{"$f":"IF(K62<=J4*0.3,\"\",\"Error: AC2.D2 no pot superar el 30% de la subvenció\")","v":""}]
[]
["Submodalidad AC3"]
["AC3.D1. Gastos de ayuda económica –beca- de la persona estudiante en prácticas (duración mínima 400 horas, y coste bruto hora: mínimo de 6€/hora en prácticas universitarias, y mínimo de acuerdo con la normativa específica Dep. Educación en FP dual"]
[]
[]
[]
[]
[null,null,null,null,null,null,null,null,"Subtotal D.9",{"$f":"SUM(J66:J69)","v":0},{"$f":"SUM(K66:K69)","v":0}]
["AC3.D2. Gastos de seguridad social del alumno/a en prácticas"]
[]
[]
[]
[]
[null,null,null,null,null,null,null,null,"Subtotal D.10",{"$f":"SUM(J72:J75)","v":0},{"$f":"SUM(K72:K75)","v":0}]
["AC3.D3. Gastos del contrato laboral de la formación dual, modalidad contrato de formación y aprendizaje"]
[]
[]
[]
[]
[null,null,null,null,null,null,null,null,"Subtotal D.11",{"$f":"SUM(J78:J81)","v":0},{"$f":"SUM(K78:K81)","v":0}]
["AC3.D4. Gastos de gestión asociados a la tramitación del Convenio de Cooperación Educativa o el Acuerdo Formativo de Colaboración/ Contrato de formación y aprendizaje"]
[]
[]
[]
[]
[null,null,null,null,null,null,null,null,"Subtotal D.12",{"$f":"SUM(J84:J87)","v":0},{"$f":"SUM(K84:K87)","v":0}]
["TOTAL GASTOS DIRECTOS ",null,null,null,null,null,null,null,"TOTAL GASTOS DIRECTOS ",{"$f":"+J18+J30+J36+J42+J48+J56+J62+J70+J76+J82+J88+J24","v":0},{"$f":"+K18+K30+K36+K42+K48+K56+K62+K70+K76+K82+K88+K24","v":0}]
["TOTAL GASTOS",null,null,null,null,null,null,null,"TOTAL",{"$f":"J89","v":0},{"$f":"K89","v":0}]
[]
[]
[]
["Notas:"]
["(*) Se deben relacionar todos los gastos del proyecto/actividad/servicio subvencionado. En caso de que el número de filas de cada concepto sea insuficiente puede insertar líneas dentro del mismo concepto seleccionando una celda verde y haciendo clic sobre el botón de insertar línea."]
["(0) El número de orden debe ser correlativo empezando por D.1.1, D.1.2, D.1.3, D.2.4, etc."]
["(1) Respecto a los gastos de recursos humanos, puede ser subvencionable el coste total salarial mensual, que corresponde a la suma de la retribución bruta que aparece en la nómina del trabajador/a más la cuota de la empresa a la Seg. Social. Los gastos de personal se justifican con la nómina del trabajador/a acompañada de los correspondientes RLC y RNT (anteriores TC1 y TC2) de la TGSS y el modelo 111 del IRPF."]
["(2) En caso de que el documento justificativo del resto de gastos, no sea una factura, sino otro documento probatorio equivalente, como un recibo o justificante (como por dietas o transporte público), indíquelo en la columna \"observaciones\" ."]
["(3) En caso de que un justificante incluya conceptos que no tienen relación con el proyecto/actividad/servicio para el que se ha otorgado la subvención, aquí sólo se tiene que indicar la parte que realmente se ha dedicado al proyecto ."]
["(4) En esta columna debe indicarse el importe total o parcial de la factura que se imputa a la subvención recibida del Ayuntamiento de Barcelona. El total imputado, en esta columna, debe ser igual al importe de la subvención recibida."]
[]
["Pulsa el icono para generar un documento PDF del libro"]
[]
["Modalidad Ac: Formación: Innovación y formación para la mejora de la gestión y la apertura de nuevas líneas de negocio"]
["1. La cuantía de la subvención otorgada no superará el 80% del gasto total del proyecto a subvencionar."]
["2. Las solicitudes pueden contener una propuesta de proyecto de formación que contenga las tres submodalidades (Ac1, Ac2 y Ac3), o sólo una submodalidad."]
["3. En cualquier caso, el importe máximo de subvención, tanto si la solicitud contiene una, dos o tres submodalidades, será de 6.000 €."]
["4. En caso de que la solicitud presentada sobrepase el importe máximo, se considerará como importe solicitado el máximo de lo establecido en la convocatoria."]
["5. En ningún caso se considerarán gastos subvencionables:\n> Los impuestos indirectos cuando sean susceptibles de recuperación o compensación.\n> Los gastos de inversión, incluidas las adquisiciones de bienes muebles.\n> Los gastos realizados con fecha anterior al inicio del proyecto y fecha posterior a la finalización del proyecto.\n> Otros gastos que se indiquen en la convocatoria."]
["6. No son imputables en esta modalidad los gastos indirectos, detallados en el apartado 13.3. de las bases reguladoras."]
["7. La retribución de las personas contratadas en el marco del proyecto subvencionado no puede ser inferior al Salario Mínimo Interprofesional (SMI), ni a la estipulada en el correspondiente convenio o marco normativo de referencia (punto 7 de las bases 2023: requisitos de los proyectos )."]
["8. Los proyectos subvencionados deben formentar actividades de interés público o social, las cuales deben ser gratuitas para las personas participantes o en ningún caso el precio debe suponer un obstáculo para su participación, buscando otras formas de acceso personas con dificultades económicas. En caso de que haya algún tipo de lucro, deberá revertir en las propias actividades subvencionadas."]
["9. El Ayuntamiento de Barcelona y sus entidades municipales en ningún caso subvencionarán el mismo proyecto, ejecutado durante el mismo período, por ningún otro procedimiento de concesión que no sea el regulado por las bases reguladoras."]
["10. El/la beneficiario/a no podrá alterar en ningún caso el destino de las subvenciones concedidas."]
[]
["Submodalidad Ac1: Formación grupal para personas socias, trabajadoras y voluntarias de la empresa/organización, de un mínimo de 10 personas y 10 horas"]
["1. El precio máximo hora de los honorarios de las personas formadoras externas se limita en 60€/hora, incluido IRPF, en su caso pero excluido IVA en caso de que la formación no esté exenta de este impuesto."]
["2. Los gastos de viajes y desplazamiento vinculados con la realización de la formación e imputables a las actividades del proyecto subvencionable se limitarán a un máximo de un 10% del importe de la subvención."]
["3. La duración mínima de la formación grupal se establece en 10 horas para cada persona participante y el mínimo de participación se establece en 10 personas. Será exigible la hoja de firma de las personas participantes en la acción grupal."]
["4. Habrá que justificar la contribución directa de las acciones en la mejora del proyecto empresarial."]
["5. Se podrán organizar sesiones de formación compartidas por diferentes entidades de economía social y solidaria, a fin de optimizar recursos y tiempo destinado a la realización de las acciones, y favorecer la intercooperación."]
["6. Los materiales producidos: de difusión, estudios, informes o materiales didácticos utilizados, etc. en el caso de tratarse de gasto elegible de la subvención, tendrán que tener licencia Creative Commons -Compartir Igual- (share a like) y no podrá tener la condición -Sin Obras Derivadas- (no derivate Works)."]
[]
["Submodalitat Ac2: Despeses de matriculació del personal de l’entitat en accions formatives externes o bé despeses salarials del personal de l'empresa/ organització en la participació en accions formatives públiques o comunitàries sense cost de matriculació"]
["1.  La formació a subvencionar ha de tenir una durada mínima de 150 hores i/o un cost mínim de 600€ per a cada participant. "]
["2. Per justificar despeses salarials de les persones treballadores de l'organització beneficiària de la subvenció, la durada mínima de les formacions de totes les persones participants haurà de ser de mínim 40h entre totes les persones participants de l'empresa/ organització."]
["3. Serà exigible el certificat d'assistència i/o superació de l'activitat formativa expedit per l'organització formadora on constin les hores, dates i persona/es formada/es de l'empresa/ organització."]
["4. Les despeses salarials de les persones treballadores de l'organització beneficiària, es limiten a un màxim d'un 30% de l'import de la subvenció, només per als casos que participin en accions formatives de les administracions públiques, universitats i ateneus cooperatius i equivalents a les hores efectivament dedicades a aquesta formació."]
["5. Caldrà justificar  la contribució directa de les accions en la millora del projecte empresarial."]
[]
["Submodalidad Ac3: Prácticas de las personas estudiantes universitarias y de formación dual de FP en organizaciones y empresas de la ESS"]
["1. Será exigible el convenio de Cooperación Educativa con la respectiva universidad, o bien el Acuerdo Formativo de Colaboración (en el caso de beca) o el Contrato de formación y aprendizaje con el Centro de Formación Profesional correspondiente, en el momento de la presentación de la justificación."]
["2. El alumnado beneficiario deben ser personas residentes en la ciudad de Barcelona o estar matriculados/as en universidades o centros de formación de la ciudad de Barcelona."]
["3. El programa de prácticas del alumnado debe ser de una duración mínima de 400 horas."]
["4. Sólo puede presentarse una solicitud por un puesto de prácticas por la organización solicitante."]
["5. Habrá que dar de alta al alumno/a en la seguridad social como alumno/a en prácticas (tanto por prácticas curriculares como extracurriculares universitarias como para los alumnos de FP en formación dual - modalidad beca-)."]
["6. Habrá que remunerar al alumno/a en prácticas universitarias (curriculares o extracurriculares) con un coste bruto hora mínimo de 6€/hora o superior."]
["7. Habrá que remunerar al alumno/a según la modalidad de FP dual escogida como mínimo de acuerdo con la normativa específica que establece el Departamento de Educación de la Generalidad de Cataluña, o superior."]
["8. La formalización de las prácticas, el desarrollo del contenido, evaluación y seguimiento se ajustará a la normativa vigente del Departamento de Educación de la Generalidad de Cataluña y de otras normas que le sean de aplicación."]

{"sheet":"Relación de ingresos","index":1,"n_rows":73,"n_cols":10,"rows_kept":73,"cut":false,"hidden":false,"merged":[[51,0,51,9],[57,0,57,9],[56,6,56,9],[43,6,43,9],[42,6,42,9],[56,0,56,3],[50,0,50,3],[19,6,19,9],[18,6,18,9],[17,6,17,9],[16,6,16,9],[34,6,34,9],[20,0,20,3],[45,0,45,9],[47,6,47,9],[46,6,46,9],[26,6,26,9],[25,6,25,9],[24,6,24,9],[23,6,23,9],[22,6,22,9],[36,6,36,9],[35,6,35,9],[44,6,44,9],[41,6,41,9],[40,6,40,9],[30,6,30,9],[32,6,32,9],[31,6,31,9],[26,0,26,3],[50,6,50,9],[49,6,49,9],[48,6,48,9],[4,2,4,3],[7,2,7,3],[7,1,8,1],[14,0,14,3],[44,0,44,3],[27,0,27,9],[33,0,33,9],[39,0,39,9],[38,0,38,3],[32,0,32,3],[14,6,14,9],[20,6,20,9],[29,6,29,9],[28,6,28,9],[38,6,38,9],[37,6,37,9],[66,0,66,3],[65,0,65,3],[65,6,65,9],[0,0,0,9],[9,0,9,9],[15,0,15,9],[21,0,21,9],[7,6,8,9],[10,6,10,9],[11,6,11,9],[7,0,8,0],[12,6,12,9],[13,6,13,9],[3,2,3,3],[2,2,2,3],[6,0,6,3],[53,6,53,9],[52,6,52,9],[64,6,64,9],[59,6,59,9],[66,6,66,9],[60,6,60,9],[61,6,61,9],[62,6,62,9],[63,6,63,9],[58,6,58,9]]}
["Detalle de todos los ingresos obtenidos y aportaciones del propio beneficiario para la ejecución de la actividad subvencionada"]
[]
[null,"Nombre de la persona física/jurídica beneficiaria:        ",{"$f":"'Relación de gastos'!C3:C3","v":0},null,"Importe del coste total del proyecto:",null,null,{"$f":"IF(+'Relación de gastos'!J3=\"\",\"\",+'Relación de gastos'!J3)","v":""},"euros"]
[null,"Código de subvención",{"$f":"'Relación de gastos'!C4:C4","v":0},null,"Importe de la subvención otorgada:",null,null,{"$f":"IF(+'Relación de gastos'!J4=\"\",\"\",+'Relación de gastos'!J4)","v":""},"euros"]
[null,"Nombre del proyecto subvencionado",{"$f":"'Relación de gastos'!C5:C5","v":0},null,"Periodo de ejecución del proyecto subvencionado:",null,null,{"$f":"IF(+'Relación de gastos'!J5=\"\",\"\",+'Relación de gastos'!J5)","v":""},"a",{"$f":"IF(+'Relación de gastos'!M5=\"\",\"\",+'Relación de gastos'!M5)","v":""}]
[]
["Ingresos del proyecto/actividad/servicio subvencionado"]
["Núm. De orden (0)","Concepto del ingreso","Emisor del ingreso",null,"Fecha de cobro\n(dd/mm/aaaa)","Importe","Observaciones"]
[null,null,"NIF","Nombre","(1)","euros"]
["A. Subvención municipal"]
[{"$f":"IF(B11<>\"\",1,\"\")","v":""}]
[]
[]
[{"$f":"IF(B14<>\"\",MAX($A$10:A13)+1,\"\")","v":""}]
[null,null,null,null,"Subtotal A",{"$f":"SUM(F11:F14)","v":0}]
["B. Subvenciones de otras administraciones"]
[{"$f":"IF(B17<>\"\",MAX($A$10:A16)+1,\"\")","v":""}]
[{"$f":"IF(B18<>\"\",MAX($A$10:A17)+1,\"\")","v":""}]
[{"$f":"IF(B19<>\"\",MAX($A$10:A18)+1,\"\")","v":""}]
[{"$f":"IF(B20<>\"\",MAX($A$10:A19)+1,\"\")","v":""}]
[null,null,null,null,"Subtotal B",{"$f":"SUM(F17:F20)","v":0}]
["C. Subvenciones de entes privados"]
[{"$f":"IF(B23<>\"\",MAX($A$10:A22)+1,\"\")","v":""}]
[{"$f":"IF(B24<>\"\",MAX($A$10:A23)+1,\"\")","v":""}]
[{"$f":"IF(B25<>\"\",MAX($A$10:A24)+1,\"\")","v":""}]
[{"$f":"IF(B26<>\"\",MAX($A$10:A25)+1,\"\")","v":""}]
[null,null,null,null,"Subtotal C",{"$f":"SUM(F23:F26)","v":0}]
["D. Recursos propios de la organización aplicados al proyecto"]
[{"$f":"IF(B29<>\"\",MAX($A$10:A28)+1,\"\")","v":""}]
[{"$f":"IF(B30<>\"\",MAX($A$10:A29)+1,\"\")","v":""}]
[{"$f":"IF(B31<>\"\",MAX($A$10:A30)+1,\"\")","v":""}]
[{"$f":"IF(B32<>\"\",MAX($A$10:A31)+1,\"\")","v":""}]
[null,null,null,null,"Subtotal D",{"$f":"SUM(F29:F32)","v":0}]
["E. Taquillaje"]
[{"$f":"IF(B35<>\"\",MAX($A$10:A34)+1,\"\")","v":""}]
[{"$f":"IF(B36<>\"\",MAX($A$10:A35)+1,\"\")","v":""}]
[{"$f":"IF(B37<>\"\",MAX($A$10:A36)+1,\"\")","v":""}]
[{"$f":"IF(B38<>\"\",MAX($A$10:A37)+1,\"\")","v":""}]
[null,null,null,null,"Subtotal E",{"$f":"SUM(F35:F38)","v":0}]
["F. Cuotas de inscripción"]
[{"$f":"IF(B41<>\"\",MAX($A$10:A40)+1,\"\")","v":""}]
[{"$f":"IF(B42<>\"\",MAX($A$10:A41)+1,\"\")","v":""}]
[{"$f":"IF(B43<>\"\",MAX($A$10:A42)+1,\"\")","v":""}]
[{"$f":"IF(B44<>\"\",MAX($A$10:A43)+1,\"\")","v":""}]
[null,null,null,null,"Subtotal F",{"$f":"SUM(F41:F44)","v":0}]
["G. Venta de Productos"]
[{"$f":"IF(B47<>\"\",MAX($A$10:A46)+1,\"\")","v":""}]
[{"$f":"IF(B48<>\"\",MAX($A$10:A47)+1,\"\")","v":""}]
[{"$f":"IF(B49<>\"\",MAX($A$10:A48)+1,\"\")","v":""}]
[{"$f":"IF(B50<>\"\",MAX($A$10:A49)+1,\"\")","v":""}]
[null,null,null,null,"Subtotal G",{"$f":"SUM(F47:F50)","v":0}]
["H. Publicidad y/o Esponsorización"]
[{"$f":"IF(B53<>\"\",MAX($A$10:A52)+1,\"\")","v":""}]
[{"$f":"IF(B54<>\"\",MAX($A$10:A53)+1,\"\")","v":""}]
[{"$f":"IF(B55<>\"\",MAX($A$26:A54)+1,\"\")","v":""}]
[{"$f":"IF(B56<>\"\",MAX($A$26:A55)+1,\"\")","v":""}]
[null,null,null,null,"Subtotal H",{"$f":"SUM(F53:F56)","v":0}]
["I. Otros ingresos"]
[{"$f":"IF(B59<>\"\",MAX($A$10:A58)+1,\"\")","v":""}]
[{"$f":"IF(B60<>\"\",MAX($A$10:A59)+1,\"\")","v":""}]
[{"$f":"IF(B61<>\"\",MAX($A$10:A60)+1,\"\")","v":""}]
[{"$f":"IF(B62<>\"\",MAX($A$10:A61)+1,\"\")","v":""}]
[{"$f":"IF(B63<>\"\",MAX($A$10:A62)+1,\"\")","v":""}]
[{"$f":"IF(B64<>\"\",MAX($A$10:A63)+1,\"\")","v":""}]
[{"$f":"IF(B65<>\"\",MAX($A$10:A64)+1,\"\")","v":""}]
[null,null,null,null,"Subtotal I",{"$f":"SUM(F59:F65)","v":0}]
["Total INGRESOS",null,null,null,"TOTAL",{"$f":"+F15+F21+F27+F33+F39+F45+F51+F57+F66","v":0}]
[]
[]
[]
[null,"Nota:"]
[null,"(0) El número de orden debe ser correlativo empezando por el número 1"]
[null,"(1) En caso de que el ingreso esté pendiente cobro, indicar \"P. Cobro\""]

{"sheet":"Gastos e ingresos","index":2,"n_rows":62,"n_cols":11,"rows_kept":62,"cut":false,"hidden":false,"merged":[[26,6,26,7],[28,0,29,0],[27,6,27,7],[27,8,27,9],[41,0,41,10],[42,0,42,10],[10,8,11,8],[10,9,11,9],[36,0,36,10],[37,0,37,10],[38,0,38,10],[39,0,39,10],[40,0,40,10],[12,0,19,0],[12,1,13,1],[12,2,13,2],[12,3,13,3],[12,4,13,4],[20,0,22,0],[23,0,27,0],[4,0,4,1],[4,2,4,3],[4,5,4,6],[5,0,5,1],[5,2,5,3],[5,5,5,6],[6,0,6,1],[6,2,6,3],[9,0,9,1],[9,6,9,7],[10,0,11,1],[10,2,11,2],[10,3,11,3],[10,6,11,7]]}
[]
[]
["Estado de los gastos realizados y de los ingresos obtenidos para la ejecución de la actividad subvencionada (*)"]
[]
["Nombre de la persona física/jurídica beneficiaria:",null,{"$f":"'Relación de ingresos'!C3:D3","v":0},null,null,"Importe del coste total del proyecto:",null,{"$f":"'Relación de ingresos'!H3","v":""},"euros"]
["Código de subvención:",null,{"$f":"'Relación de ingresos'!C4:D4","v":0},null,null,"Importe de la subvención otorgada:",null,{"$f":"'Relación de ingresos'!H4","v":""},"euros"]
["Nombre del proyecto subvencionado:",null,{"$f":"'Relación de ingresos'!C5:D5","v":0},null,null,"Periodo de ejecución del proyecto subvencionado:",null,null,{"$f":"'Relación de ingresos'!H5","v":""},"a",{"$f":"'Relación de ingresos'!J5","v":""}]
[]
["SUBVENCIONES PARA EL ENFORTIMIENTO DE LA ECONOMÍA SOCIAL Y SOLIDARIA Y LA INTERCOOPERACIÓN 2023"]
["GASTOS PREVISTOS",null,"importe en euros",null,"importe en euros",null,"INGRESOS PREVISTOS",null,"importe en euros"]
["Gastos directos\n(aquellas que se identifican directamente con el proyecto)",null,"Previsión inicial o reformulada ya aprobada(1)","Gastos realizados (2)","Diferencia\n",null,"Ingresos previstos",null,"Previsión inicial (1)","Ingresos obtenidos (3)"]
[null,null,null,null,"(2-1)"]
["Ac1","D1.  Honorarios de las personas formadoras externas (precio máximo hora 60€/hora, incluido IRPF en su caso, no incluye IVA si formación no está exenta)",null,{"$f":"'Relación de gastos'!J18","v":0},{"$f":"+C13-D13","v":0},null,"A.","Subvención municipal (importe solicitado a la instancia/otorgado)",null,{"$f":"'Relación de ingresos'!F15","v":0}]
[null,null,null,null,null,null,"B.","Subvenciones de otras administraciones",null,{"$f":"'Relación de ingresos'!F21","v":0}]
[null,"D2.  Alquiler de bienes inmuebles vinculados directamente a la realización de la formación",null,{"$f":"'Relación de gastos'!J24","v":0},{"$f":"+C15-D15","v":0},null,"C.","Subvenciones de entes privados",null,{"$f":"'Relación de ingresos'!F27","v":0}]
[null,"D3. Adquisición de materiales y bienes consumibles necesarios para la realización de la formación",null,{"$f":"'Relación de gastos'!J30","v":0},{"$f":"+C16-D16","v":0},null,"D.","Recursos propios de la organización aplicados al proyecto",null,{"$f":"'Relación de ingresos'!F33","v":0}]
[null,"D4. Transporte – mensajería directamente vinculados a la realización de la formación",null,{"$f":"'Relación de gastos'!J36","v":0},{"$f":"+C17-D17","v":0},null,"E.","Taquillaje",null,{"$f":"'Relación de ingresos'!F39","v":0}]
[null,"D5.  Seguros",null,{"$f":"'Relación de gastos'!J42","v":0},{"$f":"+C18-D18","v":0},null,"F.","Cuotas de inscripción",null,{"$f":"'Relación de ingresos'!F45","v":0}]
[null,"D6. Viajes y desplazamientos imputables a las actividades del proyecto (máximo 10% subvención)",null,{"$f":"'Relación de gastos'!J48","v":0},{"$f":"+C19-D19","v":0},null,"G.","Venta de Productos",null,{"$f":"'Relación de ingresos'!F51","v":0}]
[null,"Subtotal gastos directos Ac1",{"$f":"SUM(C13:C19)","v":0},{"$f":"SUM(D13:D19)","v":0},{"$f":"SUM(E13:E19)","v":0},null,"H","Publicidad y/o Esponsorización",null,{"$f":"'Relación de ingresos'!F57","v":0}]
["Ac2","D7.  Gastos de matriculación en acciones formativas externas (mínimo de 150 horas y/o coste mínimo de 600€ para cada participante)",null,{"$f":"'Relación de gastos'!J56","v":0},{"$f":"+C21-D21","v":0},null,"I","Otros ingresos",null,{"$f":"'Relación de ingresos'!F66","v":0}]
[null,"D.8. Coste salarial personas trabajadoras que participen en acciones formativas de las administraciones públicas, universidades y ateneos cooperativos y equivalentes a las horas efectivamente dedicadas a esta formación (máximo 30% subvención)",null,{"$f":"'Relación de gastos'!J62","v":0},{"$f":"+C22-D22","v":0},null,null,"Total Ingresos",{"$f":"SUM(I13:I21)","v":0},{"$f":"SUM(J13:J21)","v":0}]
[null,"Subtotal gastos directos Ac2",{"$f":"SUM(C21:C22)","v":0},{"$f":"SUM(D21:D22)","v":0},{"$f":"SUM(E21:E22)","v":0}]
["Ac3","D9.  Gastos de ayuda económica –beca- de la persona estudiante en prácticas (duración mínima 400 horas, y coste bruto hora: mínimo de 6E/hora en prácticas universitarias, y mínimo de acuerdo con la normativa específica Dep. Educación en FP dual)",null,{"$f":"'Relación de gastos'!J70","v":0},{"$f":"+C24-D24","v":0},null,null,null,null,null,{"$f":"+IF(J24<0,\"No s'admeten valors negatius\",\"\")","v":""}]
[null,"D10.  Gastos de seguridad social del alumno/a en prácticas",null,{"$f":"'Relación de gastos'!J76","v":0},{"$f":"+C25-D25","v":0}]
[null,"D11. Gastos del contrato laboral de la formación dual, modalidad contrato de formación y aprendizaje",null,{"$f":"'Relación de gastos'!J82","v":0},{"$f":"+C26-D26","v":0}]
[null,"D12 Gastos de gestión asociados a la tramitación del Convenio de Cooperación Educativa o el Acuerdo Formativo de Colaboración/ Contrato de formación y aprendizaje",null,{"$f":"'Relación de gastos'!J88","v":0},{"$f":"+C27-D27","v":0},null,"Ingresos menos gastos ",null,{"$f":"I22-C30","v":0},{"$f":"J22-D30","v":0}]
[null,"Subtotal gastos directos Ac3",{"$f":"SUM(C24:C27)","v":0},{"$f":"SUM(D24:D27)","v":0},{"$f":"SUM(E24:E27)","v":0},null,"Desviación de Gastos (4)",null,"Desviación de ingresos (4)"]
["Ac","Total gastos directos   ",{"$f":"C20+C23+C28","v":0},{"$f":"D20+D23+D28","v":0},{"$f":"E20+E23+E28","v":0},null,"Importe"," % ","Importe","%"]
[null,"Total Gastos ",{"$f":"C29","v":0},{"$f":"+D29","v":0},{"$f":"+E29","v":0},null,{"$f":"D30-C30","v":0},{"$f":"D30/C30","v":{"$error":"#DIV/0!"}},{"$f":"J22-I22","v":0},{"$f":"J22/I22","v":{"$error":"#DIV/0!"}}]
[null,null,null,null,null,null,null,null,"% subvencionado inicialmente o después de reformulación (5)",{"$f":"I13/I22","v":{"$error":"#DIV/0!"}}]
[null,null,null,null,null,null,null,null,"% subvencionado después de justificación (6)",{"$f":"J13/J22","v":{"$error":"#DIV/0!"}}]
[]
[]
[]
["Notas:"]
["(*) Las columnas sombreadas en color se irán rellenando automáticamente a partir de los datos introducidos en los documentos de gastos -detalle e ingresos-detalle. Por tanto, no imprima esta hoja hasta haber rellenado los demás."]
["(1) Previsión inicial o reformulación ya aprobada = Se debe indicar la previsión inicial de gastos y de ingresos según lo indicado en el proyecto original en el \"plan de viabilidad económica del proyecto - presupuesto general\" . En caso de que ya se haya aprobado una reformulación, deben indicarse las cantidades reformuladas."]
["(2) Gastos reales = Coste real total del proyecto subvencionado. Automáticamente se introducirán los subtotales de los gastos relacionados en la hoja Gastos-detalle."]
["(3) Ingresos reales = Total de ingresos obtenidos para la realización del proyecto subvencionado. Automáticamente se introducirán los subtotales de los ingresos relacionados en la hoja Ingresos-detalle"]
["(4) Desviación: En el caso de los gastos, la desviación es la diferencia entre gastos reales y la previsión inicial de gastos; y en el caso de ingresos, la diferencia entre los ingresos reales y la previsión inicial de ingresos."]
["(5) % financiación municipal inicial o después de reformulación = porcentaje que suponen las subvenciones municipales (A) respecto del total de ingresos del proyecto subvencionado."]
["(6) % financiación municipal después de justificación = porcentaje que supone la subvención municipal (A) respecto al total de ingresos del proyecto subvencionado. En caso de existir una desviación siempre debe motivarse"]
[]
[]
[]
[]
[]
[]
[]
[]
[]
[]
[]
[]
[]
[]
[]
[]
[]
[]
[null,null,0]